[Event "Belt and Road Women-ch 2020"]
[Site "Xi'an"]
[Date "2020.12.05"]
[Round "1.1"]
[White "Lei, Tingjie"]
[Black "Abdumalik, Zhansaya"]
[Result "1-0"]
[ECO "E90"]
[WhiteElo "2505"]
[BlackElo "2478"]
[Annotator "ChessBase"]
[PlyCount "67"]
[EventDate "2020.12.03"]
[EventCountry "CHN"]
[SourceTitle "playchess.com"]
[Source "ChessBase"]
[SourceQuality "1"]
[TimeControl "900+5"]

1. d4 {[%emt 0:00:01]} Nf6 {[%emt 0:00:02]} 2. c4 {[%emt 0:00:02]} g6 {[%emt 0:00:10]} 3. Nc3 {[%emt 0:00:03]} d6 {[%emt 0:00:04]} 4. e4 {[%emt 0:00:05]} Bg7 {[%emt 0:00:01]} 5. h3 {[%emt 0:00:41]} c6 {[%emt 0:00:28]} 6. Be3 {[%emt 0:00:08]} O-O {[%emt 0:00:26]} 7. Nf3 {[%emt 0:00:11]} e5 {[%emt 0:00:38]} 8. d5 {[%emt 0:00:10]} Nh5 {[%emt 0:01:00]} 9. Nd2 {[%emt 0:00:08]} Nd7 {[%emt 0:00:46]} 10. g3 {[%emt 0:00:17]} a5 {[%emt 0:01:13]} 11. Be2 {[%emt 0:00:07]} Nhf6 {[%emt 0:00:02]} 12. g4 {[%emt 0:00:21]} Ne8 {[%emt 0:00:26]} 13. h4 {[%emt 0:01:00]} Nc5 {[%emt 0:00:58]} 14. g5 {[%emt 0:02:51]} cxd5 {[%emt 0:00:32]} 15. exd5 {[%emt 0:01:30]} f5 {[%emt 0:00:34]} 16. Qc2 {[%emt 0:01:17]} Na6 {[%emt 0:01:00]} 17. f3 {[%emt 0:00:03]} f4 {[%emt 0:01:01]} 18. Bf2 {[%emt 0:00:03]} Bf5 {[%emt 0:00:00]} 19. Nde4 {[%emt 0:00:17]} Rc8 {[%emt 0:01:17]} 20. O-O-O {[%emt 0:03:15]} Rf7 {[%emt 0:01:12]} 21. Kb1 {[%emt 0:00:09]} b6 {[%emt 0:00:43]} 22. Ka1 {[%emt 0:00:57]} Nc5 {[%emt 0:00:26]} 23. Bxc5 {[%emt 0:00:26]} bxc5 {[%emt 0:00:03]} 24. Nb5 {[%emt 0:00:10]} Bf8 {[%emt 0:00:14]} 25. Bd3 {[%emt 0:00:07]} Be7 {[%emt 0:00:29]} 26. h5 {[%emt 0:00:43]} Ng7 {[%emt 0:00:57]} 27. Rdg1 {[%emt 0:01:12]} Qd7 {[%emt 0:01:26]} 28. hxg6 {[%emt 0:00:06]} hxg6 {[%emt 0:00:35]} 29. Rh6 {[%emt 0:00:03]} Rff8 {[%emt 0:00:18]} 30. Nbxd6 {[%emt 0:00:44]} Bxd6 {[%emt 0:00:12]} 31. Nf6+ {[%emt 0:00:01]} Rxf6 {[%emt 0:00:03]} 32. gxf6 {[%emt 0:00:01]} Bxd3 {[%emt 0:00:02]} 33. Qxd3 {[%emt 0:00:01]} Qf5 {[%emt 0:00:00]} 34. Rgxg6 {[%emt 0:00:12]} 1-0

[Event "Belt and Road Women-ch 2020"]
[Site "Xi'an"]
[Date "2020.12.05"]
[Round "1.2"]
[White "Khademalsharieh, Sarasadat"]
[Black "Tan, Zhongyi"]
[Result "1/2-1/2"]
[ECO "D37"]
[WhiteElo "2494"]
[BlackElo "2510"]
[Annotator "ChessBase"]
[PlyCount "50"]
[EventDate "2020.12.03"]
[EventCountry "CHN"]
[SourceTitle "playchess.com"]
[Source "ChessBase"]
[SourceQuality "1"]
[TimeControl "900+5"]

1. d4 {[%emt 0:00:07]} d5 {[%emt 0:01:23]} 2. c4 {[%emt 0:00:05]} e6 {[%emt 0:00:02]} 3. Nc3 {[%emt 0:00:05]} Nf6 {[%emt 0:00:02]} 4. Nf3 {[%emt 0:00:10]} a6 {[%emt 0:00:02]} 5. cxd5 {[%emt 0:00:30]} exd5 {[%emt 0:00:02]} 6. Bg5 {[%emt 0:00:02]} Be6 {[%emt 0:00:05]} 7. e3 {[%emt 0:00:18]} Nbd7 {[%emt 0:00:04]} 8. Bd3 {[%emt 0:00:07]} Bd6 {[%emt 0:00:06]} 9. O-O {[%emt 0:00:11]} c6 {[%emt 0:00:28]} 10. Bf4 {[%emt 0:00:05]} Qc7 {[%emt 0:00:35]} 11. Bxd6 {[%emt 0:00:20]} Qxd6 {[%emt 0:00:02]} 12. Qc2 {[%emt 0:00:14]} O-O {[%emt 0:00:06]} 13. Na4 {[%emt 0:00:02]} Bg4 {[%emt 0:00:27]} 14. Nd2 {[%emt 0:00:02]} Rfe8 {[%emt 0:00:23]} 15. Rac1 {[%emt 0:01:31]} Bh5 {[%emt 0:00:09]} 16. Nc5 {[%emt 0:00:20]} Nxc5 {[%emt 0:01:04]} 17. Qxc5 {[%emt 0:00:02]} Qd7 {[%emt 0:02:20]} 18. b4 {[%emt 0:00:30]} Bg6 {[%emt 0:00:03]} 19. Bxg6 {[%emt 0:00:49]} hxg6 {[%emt 0:00:02]} 20. a4 {[%emt 0:00:01]} Rac8 {[%emt 0:00:21]} 21. Qc2 {[%emt 0:00:11]} Qd6 {[%emt 0:00:22]} 22. Qc5 {[%emt 0:00:02]} Qd7 {[%emt 0:01:00]} 23. Qc2 {[%emt 0:00:15]} Qd6 {[%emt 0:00:01]} 24. Qc5 {[%emt 0:00:02]} Qb8 {[%emt 0:00:38]} 25. Qc2 {[%emt 0:00:20]} Qd6 {[%emt 0:00:54]} 1/2-1/2

[Event "Belt and Road Women-ch 2020"]
[Site "Xi'an"]
[Date "2020.12.05"]
[Round "1.3"]
[White "Muzychuk, Mariya"]
[Black "Dzagnidze, Nana"]
[Result "1-0"]
[ECO "B31"]
[WhiteElo "2544"]
[BlackElo "2524"]
[Annotator "ChessBase"]
[PlyCount "79"]
[EventDate "2020.12.03"]
[EventCountry "CHN"]
[SourceTitle "playchess.com"]
[Source "ChessBase"]
[SourceQuality "1"]
[TimeControl "900+5"]

1. e4 {[%emt 0:00:09]} c5 {[%emt 0:00:03]} 2. Nf3 {[%emt 0:00:03]} Nc6 {[%emt 0:00:02]} 3. Bb5 {[%emt 0:00:25]} g6 {[%emt 0:00:11]} 4. O-O {[%emt 0:00:33]} Bg7 {[%emt 0:01:43]} 5. c3 {[%emt 0:00:10]} Nf6 {[%emt 0:00:10]} 6. Re1 {[%emt 0:00:12]} O-O {[%emt 0:00:12]} 7. d4 {[%emt 0:00:28]} d5 {[%emt 0:00:41]} 8. e5 {[%emt 0:00:42]} Ne4 {[%emt 0:00:04]} 9. Be3 {[%emt 0:00:31]} cxd4 {[%emt 0:01:00]} 10. cxd4 {[%emt 0:00:13]} Qb6 {[%emt 0:02:50]} 11. Qe2 {[%emt 0:00:53]} f6 {[%emt 0:02:54]} 12. exf6 {[%emt 0:05:23]} exf6 {[%emt 0:00:51]} 13. Nc3 {[%emt 0:00:41]} Be6 {[%emt 0:01:11]} 14. Rac1 {[%emt 0:01:00]} a6 {[%emt 0:01:38]} 15. Bxc6 {[%emt 0:00:45]} bxc6 {[%emt 0:00:08]} 16. Nxe4 {[%emt 0:00:42]} dxe4 {[%emt 0:00:03]} 17. d5 {[%emt 0:00:20]} exf3 {[%emt 0:00:07]} 18. Bxb6 {[%emt 0:00:17]} fxe2 {[%emt 0:00:04]} 19. dxe6 {[%emt 0:00:01]} Rab8 {[%emt 0:00:31]} 20. Rxc6 {[%emt 0:02:05]} Rfc8 {[%emt 0:00:05]} 21. Rxc8+ {[%emt 0:00:09]} Rxc8 {[%emt 0:00:02]} 22. f3 {[%emt 0:00:02]} Rc2 {[%emt 0:00:39]} 23. Kf2 {[%emt 0:00:09]} Rxb2 {[%emt 0:01:25]} 24. Rxe2 {[%emt 0:00:04]} Rxe2+ {[%emt 0:00:04]} 25. Kxe2 {[%emt 0:00:01]} f5 {[%emt 0:00:03]} 26. Kd3 {[%emt 0:00:04]} Kf8 {[%emt 0:00:07]} 27. Kc4 {[%emt 0:00:11]} Ke8 {[%emt 0:00:14]} 28. Kd5 {[%emt 0:00:02]} Bc3 {[%emt 0:00:04]} 29. a4 {[%emt 0:00:09]} Bb4 {[%emt 0:00:07]} 30. Bc5 {[%emt 0:00:05]} Bc3 {[%emt 0:00:01]} 31. Kc6 {[%emt 0:00:15]} a5 {[%emt 0:00:03]} 32. Kb5 {[%emt 0:00:09]} Bd2 {[%emt 0:00:02]} 33. h3 {[%emt 0:00:06]} Be1 {[%emt 0:00:02]} 34. Bb6 {[%emt 0:00:12]} Ke7 {[%emt 0:00:01]} 35. Bxa5 {[%emt 0:00:02]} Bf2 {[%emt 0:00:05]} 36. Bb6 {[%emt 0:00:05]} Be1 {[%emt 0:00:02]} 37. a5 {[%emt 0:00:04]} Bxa5 {[%emt 0:00:02]} 38. Bxa5 {[%emt 0:00:02]} Kxe6 {[%emt 0:00:00]} 39. Kc5 {[%emt 0:00:12]} Ke5 {[%emt 0:00:07]} 40. Bc7+ {[%emt 0:00:03]} 1-0

[Event "Belt and Road Women-ch 2020"]
[Site "Xi'an"]
[Date "2020.12.05"]
[Round "1.4"]
[White "Stefanova, Antoaneta"]
[Black "Hou, Yifan"]
[Result "0-1"]
[ECO "A46"]
[WhiteElo "2466"]
[BlackElo "2658"]
[Annotator "RC"]
[PlyCount "86"]
[EventDate "2020.12.03"]
[EventCountry "CHN"]
[SourceTitle "playchess.com"]
[Source "ChessBase"]
[SourceQuality "1"]
[TimeControl "900+5"]

1. d4 {[%emt 0:00:03]} Nf6 {[%emt 0:01:22]} 2. Bg5 {[%emt 0:00:08]} e6 {[%emt 0:00:04]} 3. Nd2 {[%emt 0:00:07]} h6 {[%emt 0:00:03]} 4. Bh4 {[%emt 0:00:02]} c5 {[%emt 0:00:10]} 5. e3 {[%emt 0:00:03]} b6 {[%emt 0:00:05]} 6. Ngf3 {[%emt 0:00:25]} Bb7 {[%emt 0:00:11]} 7. c3 {[%emt 0:00:03]} Be7 {[%emt 0:00:03]} 8. a3 {[%emt 0:00:06]} d6 {[%emt 0:00:50]} 9. Bb5+ {[%emt 0:00:40]} Nc6 {[%emt 0:00:28]} 10. O-O {[%emt 0:00:53]} O-O {[%emt 0:00:03]} 11. e4 {[%emt 0:02:07]} a6 {[%emt 0:00:54]} 12. Bd3 {[%emt 0:00:07]} Nh5 {[%emt 0:01:14]} 13. Bxe7 {[%emt 0:00:13]} Nxe7 {[%emt 0:00:53]} 14. Re1 {[%emt 0:00:10]} Nf4 {[%emt 0:00:07]} 15. Bf1 {[%emt 0:00:03]} b5 {[%emt 0:01:07]} 16. g3 {[%emt 0:00:21]} Nfg6 {[%emt 0:00:02]} 17. h4 {[%emt 0:00:18]} Nc6 {[%emt 0:00:12]} 18. h5 {[%emt 0:00:22]} Nge7 {[%emt 0:00:02]} 19. dxc5 {[%emt 0:01:15]} dxc5 {[%emt 0:00:02]} 20. Nb3 {[%emt 0:00:01]} Qb6 {[%emt 0:00:30]} 21. Qd6 {[%emt 0:00:12]} c4 {[%emt 0:00:01]} 22. Qc5 {[%emt 0:00:01]} Qc7 {[%emt 0:00:11]} 23. Nbd4 {[%emt 0:00:07]} Rac8 {[%emt 0:00:28]} 24. Nxc6 {[%emt 0:00:10]} Bxc6 {[%emt 0:00:27]} 25. a4 {[%emt 0:00:20]} Qb7 {[%emt 0:00:19]} 26. Qe3 {[%emt 0:01:09]} bxa4 {[%emt 0:01:15]} 27. Ne5 {[%emt 0:00:04]} Qc7 {[%emt 0:01:06]} 28. Nxc4 {[%emt 0:03:54]} Bb5 {[%emt 0:00:03]} 29. Nd2 {[%emt 0:00:06]} Rb8 {[%emt 0:00:02]} 30. Bxb5 {[%emt 0:00:20]} axb5 {[%emt 0:00:28]} 31. c4 {[%emt 0:00:15]} Rfd8 {[%emt 0:00:30]} 32. cxb5 {[%emt 0:00:21]} Qa5 {[%emt 0:01:01]} 33. Nf3 {[%emt 0:00:51]} Qxb5 {[%emt 0:00:02]} 34. g4 {[%emt 0:00:50]} Nc6 {[%emt 0:01:33]} 35. g5 {[%emt 0:00:43]} hxg5 {[%emt 0:00:40]} 36. Qxg5 {[%emt 0:00:02]} Nd4 {[%emt 0:00:13]} 37. Qg4 {[%emt 0:00:37]} Nxf3+ {[%emt 0:00:03]} 38. Qxf3 {[%emt 0:00:02]} Qg5+ {[%emt 0:00:01]} 39. Qg2 {[%emt 0:00:18]} Qxh5 {[%emt 0:00:01]} 40. Rxa4 {[%emt 0:00:03]} Rxb2 {[%emt 0:00:02]} 41. e5 {[%emt 0:00:06]} Re2 {[%emt 0:00:13]} 42. Rea1 {[%emt 0:00:19]} Qxe5 {[%emt 0:00:06]} 43. Rg4 {[%emt 0:00:06]} Qxa1+ {[%emt 0:00:02]} 0-1

[Event "Belt and Road Women-ch 2020"]
[Site "Xi'an"]
[Date "2020.12.05"]
[Round "1.5"]
[White "Atalik, Ekaterina"]
[Black "Zhao, Xue"]
[Result "1-0"]
[ECO "E11"]
[WhiteElo "2430"]
[BlackElo "2486"]
[Annotator "ChessBase"]
[PlyCount "101"]
[EventDate "2020.12.03"]
[EventCountry "CHN"]
[SourceTitle "playchess.com"]
[Source "ChessBase"]
[SourceQuality "1"]
[TimeControl "900+5"]

1. d4 {[%emt 0:00:03]} Nf6 {[%emt 0:00:05]} 2. c4 {[%emt 0:00:02]} e6 {[%emt 0:00:01]} 3. Nf3 {[%emt 0:00:02]} Bb4+ {[%emt 0:00:20]} 4. Bd2 {[%emt 0:00:02]} Qe7 {[%emt 0:00:12]} 5. g3 {[%emt 0:00:04]} Nc6 {[%emt 0:00:12]} 6. Nc3 {[%emt 0:00:08]} O-O {[%emt 0:00:59]} 7. Bg2 {[%emt 0:00:33]} d6 {[%emt 0:00:12]} 8. O-O {[%emt 0:00:41]} a5 {[%emt 0:01:13]} 9. Qc2 {[%emt 0:02:04]} e5 {[%emt 0:00:21]} 10. dxe5 {[%emt 0:01:42]} Nxe5 {[%emt 0:01:23]} 11. Nxe5 {[%emt 0:00:31]} dxe5 {[%emt 0:00:06]} 12. Bg5 {[%emt 0:00:24]} Bxc3 {[%emt 0:00:27]} 13. Qxc3 {[%emt 0:00:04]} Re8 {[%emt 0:01:15]} 14. Rfd1 {[%emt 0:01:01]} c6 {[%emt 0:00:59]} 15. c5 {[%emt 0:00:18]} Bg4 {[%emt 0:00:26]} 16. Rd6 {[%emt 0:01:29]} Ne4 {[%emt 0:00:36]} 17. Bxe4 {[%emt 0:00:31]} Qxg5 {[%emt 0:00:02]} 18. Qc2 {[%emt 0:00:49]} g6 {[%emt 0:00:48]} 19. Rad1 {[%emt 0:00:04]} a4 {[%emt 0:00:35]} 20. h4 {[%emt 0:00:28]} Qe7 {[%emt 0:00:04]} 21. Qd2 {[%emt 0:00:14]} Kg7 {[%emt 0:00:20]} 22. Bc2 {[%emt 0:00:37]} Be6 {[%emt 0:00:27]} 23. Qb4 {[%emt 0:00:29]} Bxa2 {[%emt 0:02:14]} 24. Rd7 {[%emt 0:00:09]} Qf8 {[%emt 0:00:29]} 25. Rxb7 {[%emt 0:00:12]} Reb8 {[%emt 0:00:16]} 26. Rdd7 {[%emt 0:00:20]} Qc8 {[%emt 0:00:25]} 27. h5 {[%emt 0:00:31]} Qxd7 {[%emt 0:00:56]} 28. h6+ {[%emt 0:00:33]} Kf6 {[%emt 0:01:11]} 29. Rxb8 {[%emt 0:00:03]} Rxb8 {[%emt 0:00:16]} 30. Qxb8 {[%emt 0:00:01]} Qe7 {[%emt 0:00:17]} 31. Qb4 {[%emt 0:00:09]} Qd7 {[%emt 0:00:13]} 32. Bxa4 {[%emt 0:00:27]} Bd5 {[%emt 0:00:05]} 33. Bb3 {[%emt 0:01:18]} Bxb3 {[%emt 0:00:07]} 34. Qxb3 {[%emt 0:00:01]} Qd4 {[%emt 0:00:02]} 35. Qc2 {[%emt 0:00:06]} Kg5 {[%emt 0:00:04]} 36. Qc1+ {[%emt 0:00:03]} Kh5 {[%emt 0:00:02]} 37. b3 {[%emt 0:00:13]} g5 {[%emt 0:00:02]} 38. Qe3 {[%emt 0:00:06]} Qxe3 {[%emt 0:00:07]} 39. fxe3 {[%emt 0:00:01]} Kg6 {[%emt 0:00:06]} 40. e4 {[%emt 0:00:10]} Kf6 {[%emt 0:00:03]} 41. Kf2 {[%emt 0:00:02]} Ke6 {[%emt 0:00:03]} 42. Ke3 {[%emt 0:00:01]} g4 {[%emt 0:00:04]} 43. Kd3 {[%emt 0:00:03]} Kd7 {[%emt 0:00:02]} 44. Kc4 {[%emt 0:00:01]} Kc7 {[%emt 0:00:02]} 45. b4 {[%emt 0:00:00]} Kb7 {[%emt 0:00:07]} 46. b5 {[%emt 0:00:01]} Kc7 {[%emt 0:00:02]} 47. bxc6 {[%emt 0:00:03]} Kxc6 {[%emt 0:00:02]} 48. Kb4 {[%emt 0:00:01]} Kc7 {[%emt 0:00:06]} 49. Kb5 {[%emt 0:00:01]} Kb7 {[%emt 0:00:04]} 50. c6+ {[%emt 0:00:01]} Kc7 {[%emt 0:00:01]} 51. Kc5 {[%emt 0:00:01]} 1-0

[Event "Belt and Road Women-ch 2020"]
[Site "Xi'an"]
[Date "2020.12.05"]
[Round "2.1"]
[White "Abdumalik, Zhansaya"]
[Black "Zhao, Xue"]
[Result "1-0"]
[ECO "C11"]
[WhiteElo "2478"]
[BlackElo "2486"]
[Annotator "ChessBase"]
[PlyCount "167"]
[EventDate "2020.12.03"]
[EventCountry "CHN"]
[SourceTitle "playchess.com"]
[Source "ChessBase"]
[SourceQuality "1"]
[TimeControl "900+5"]

1. e4 {[%emt 0:00:01]} e6 {[%emt 0:00:02]} 2. d4 {[%emt 0:00:02]} d5 {[%emt 0:00:01]} 3. Nc3 {[%emt 0:00:04]} Nf6 {[%emt 0:00:06]} 4. e5 {[%emt 0:00:02]} Nfd7 {[%emt 0:00:02]} 5. f4 {[%emt 0:00:06]} c5 {[%emt 0:00:01]} 6. Nf3 {[%emt 0:00:01]} Nc6 {[%emt 0:00:02]} 7. Be3 {[%emt 0:00:01]} a6 {[%emt 0:00:14]} 8. Qd2 {[%emt 0:00:03]} Be7 {[%emt 0:00:19]} 9. Be2 {[%emt 0:00:06]} O-O {[%emt 0:00:08]} 10. O-O {[%emt 0:00:05]} b5 {[%emt 0:00:02]} 11. Nd1 {[%emt 0:00:02]} Qb6 {[%emt 0:00:28]} 12. c3 {[%emt 0:00:21]} Na5 {[%emt 0:00:46]} 13. Bf2 {[%emt 0:01:10]} Nc4 {[%emt 0:00:18]} 14. Qc1 {[%emt 0:00:30]} cxd4 {[%emt 0:00:17]} 15. Nxd4 {[%emt 0:00:20]} Qc7 {[%emt 0:00:37]} 16. b3 {[%emt 0:01:35]} Ncb6 {[%emt 0:00:37]} 17. Qe3 {[%emt 0:00:35]} Nc5 {[%emt 0:01:08]} 18. Bf3 {[%emt 0:00:07]} Rb8 {[%emt 0:01:19]} 19. Bg3 {[%emt 0:01:29]} Ne4 {[%emt 0:00:23]} 20. Bxe4 {[%emt 0:01:05]} dxe4 {[%emt 0:00:03]} 21. Qxe4 {[%emt 0:00:01]} Bb7 {[%emt 0:00:33]} 22. Qe2 {[%emt 0:00:13]} Nd5 {[%emt 0:00:19]} 23. Rc1 {[%emt 0:00:23]} Qb6 {[%emt 0:00:39]} 24. Qd2 {[%emt 0:04:59]} Rfd8 {[%emt 0:00:18]} 25. Bf2 {[%emt 0:00:12]} Bc5 {[%emt 0:00:30]} 26. f5 {[%emt 0:01:15]} exf5 {[%emt 0:02:07]} 27. Qg5 {[%emt 0:00:21]} Qg6 {[%emt 0:01:10]} 28. Qxf5 {[%emt 0:00:26]} Nf4 {[%emt 0:02:45]} 29. Qxg6 {[%emt 0:00:36]} hxg6 {[%emt 0:00:04]} 30. Rc2 {[%emt 0:00:20]} Be4 {[%emt 0:00:05]} 31. Rd2 {[%emt 0:00:12]} Bxg2 {[%emt 0:00:06]} 32. Re1 {[%emt 0:00:06]} Bb7 {[%emt 0:00:19]} 33. b4 {[%emt 0:00:22]} Bb6 {[%emt 0:00:08]} 34. Be3 {[%emt 0:00:26]} Nd5 {[%emt 0:00:24]} 35. Bf2 {[%emt 0:00:06]} Rbc8 {[%emt 0:00:09]} 36. Rd3 {[%emt 0:00:01]} Nf4 {[%emt 0:00:10]} 37. Rg3 {[%emt 0:00:03]} Re8 {[%emt 0:00:32]} 38. a3 {[%emt 0:00:05]} Bd5 {[%emt 0:00:22]} 39. Nb2 {[%emt 0:00:11]} Bb7 {[%emt 0:00:11]} 40. Nd1 {[%emt 0:00:06]} Rcd8 {[%emt 0:00:04]} 41. Nb2 {[%emt 0:00:02]} Nd5 {[%emt 0:00:02]} 42. a4 {[%emt 0:00:09]} Nxc3 {[%emt 0:00:06]} 43. Rxc3 {[%emt 0:00:02]} Rxd4 {[%emt 0:00:05]} 44. Rg3 {[%emt 0:00:04]} Re6 {[%emt 0:00:22]} 45. a5 {[%emt 0:00:03]} Rd2 {[%emt 0:00:10]} 46. axb6 {[%emt 0:00:03]} Rxb2 {[%emt 0:00:01]} 47. Rd3 {[%emt 0:00:04]} Rxf2 {[%emt 0:00:09]} 48. Kxf2 {[%emt 0:00:05]} Rxb6 {[%emt 0:00:03]} 49. Rd6 {[%emt 0:00:00]} Rc6 {[%emt 0:00:02]} 50. Rxc6 {[%emt 0:00:02]} Bxc6 {[%emt 0:00:01]} 51. Rc1 {[%emt 0:00:01]} Bd5 {[%emt 0:00:02]} 52. Rc8+ {[%emt 0:00:03]} Kh7 {[%emt 0:00:02]} 53. h4 {[%emt 0:00:01]} g5 {[%emt 0:00:03]} 54. hxg5 {[%emt 0:00:07]} Kg6 {[%emt 0:00:01]} 55. Rg8 {[%emt 0:00:02]} Kf5 {[%emt 0:00:07]} 56. Rxg7 {[%emt 0:00:02]} Kxe5 {[%emt 0:00:01]} 57. Ke3 {[%emt 0:00:01]} Be6 {[%emt 0:00:12]} 58. Kd3 {[%emt 0:00:12]} Kd5 {[%emt 0:00:04]} 59. Rg8 {[%emt 0:00:08]} Bf5+ {[%emt 0:00:03]} 60. Kc3 {[%emt 0:00:02]} Ke5 {[%emt 0:00:13]} 61. Ra8 {[%emt 0:00:06]} Kf4 {[%emt 0:00:04]} 62. Rxa6 {[%emt 0:00:05]} Kxg5 {[%emt 0:00:01]} 63. Rb6 {[%emt 0:00:01]} Bd7 {[%emt 0:00:02]} 64. Rb7 {[%emt 0:00:02]} Be6 {[%emt 0:00:22]} 65. Rxb5+ {[%emt 0:00:01]} f5 {[%emt 0:00:02]} 66. Kd2 {[%emt 0:00:05]} Kf6 {[%emt 0:00:02]} 67. Ke3 {[%emt 0:00:02]} Ke7 {[%emt 0:00:03]} 68. Kd4 {[%emt 0:00:08]} Bd7 {[%emt 0:00:03]} 69. Rb6 {[%emt 0:00:03]} Kd8 {[%emt 0:00:04]} 70. Kc5 {[%emt 0:00:08]} Ke7 {[%emt 0:00:03]} 71. Kd5 {[%emt 0:00:02]} Ba4 {[%emt 0:00:07]} 72. Ke5 {[%emt 0:00:11]} Bc2 {[%emt 0:00:03]} 73. Rb7+ {[%emt 0:00:03]} Kd8 {[%emt 0:00:01]} 74. Kd6 {[%emt 0:00:02]} Ke8 {[%emt 0:00:04]} 75. Ke6 {[%emt 0:00:02]} Kd8 {[%emt 0:00:01]} 76. b5 {[%emt 0:00:17]} Kc8 {[%emt 0:00:06]} 77. Rg7 {[%emt 0:00:06]} Bd3 {[%emt 0:00:08]} 78. b6 {[%emt 0:00:04]} f4 {[%emt 0:00:01]} 79. Ke5 {[%emt 0:00:06]} f3 {[%emt 0:00:01]} 80. Rf7 {[%emt 0:00:02]} Be2 {[%emt 0:00:03]} 81. Kd6 {[%emt 0:00:01]} Bd1 {[%emt 0:00:03]} 82. b7+ {[%emt 0:00:11]} Kb8 {[%emt 0:00:02]} 83. Kc6 {[%emt 0:00:01]} Ka7 {[%emt 0:00:30]} 84. Kc7 {[%emt 0:00:10]} 1-0

[Event "Belt and Road Women-ch 2020"]
[Site "Xi'an"]
[Date "2020.12.05"]
[Round "2.3"]
[White "Dzagnidze, Nana"]
[Black "Stefanova, Antoaneta"]
[Result "1/2-1/2"]
[ECO "D13"]
[WhiteElo "2524"]
[BlackElo "2466"]
[Annotator "ChessBase"]
[PlyCount "99"]
[EventDate "2020.12.03"]
[EventCountry "CHN"]
[SourceTitle "playchess.com"]
[Source "ChessBase"]
[SourceQuality "1"]
[TimeControl "900+5"]

1. d4 {[%emt 0:00:01]} d5 {[%emt 0:00:02]} 2. c4 {[%emt 0:00:02]} c6 {[%emt 0:00:02]} 3. Nf3 {[%emt 0:00:03]} Nf6 {[%emt 0:00:02]} 4. cxd5 {[%emt 0:00:03]} cxd5 {[%emt 0:00:03]} 5. Nc3 {[%emt 0:00:01]} Nc6 {[%emt 0:00:19]} 6. Bf4 {[%emt 0:00:04]} a6 {[%emt 0:00:19]} 7. e3 {[%emt 0:00:05]} Bg4 {[%emt 0:00:11]} 8. h3 {[%emt 0:00:17]} Bxf3 {[%emt 0:00:26]} 9. Qxf3 {[%emt 0:00:03]} Qb6 {[%emt 0:00:17]} 10. Rb1 {[%emt 0:00:41]} e6 {[%emt 0:01:58]} 11. Be2 {[%emt 0:00:12]} Ne4 {[%emt 0:01:10]} 12. Nxe4 {[%emt 0:00:19]} dxe4 {[%emt 0:00:03]} 13. Qxe4 {[%emt 0:00:06]} Qa5+ {[%emt 0:00:06]} 14. Kf1 {[%emt 0:00:03]} Qxa2 {[%emt 0:00:08]} 15. g4 {[%emt 0:01:36]} Be7 {[%emt 0:01:02]} 16. Kg2 {[%emt 0:01:31]} O-O {[%emt 0:00:30]} 17. h4 {[%emt 0:02:00]} Rad8 {[%emt 0:02:39]} 18. h5 {[%emt 0:00:46]} Bd6 {[%emt 0:03:14]} 19. h6 {[%emt 0:05:56]} g6 {[%emt 0:00:06]} 20. Bxd6 {[%emt 0:01:12]} Rxd6 {[%emt 0:00:04]} 21. Rhc1 {[%emt 0:00:02]} Qd5 {[%emt 0:00:30]} 22. Bf3 {[%emt 0:00:17]} Qg5 {[%emt 0:00:22]} 23. Rc5 {[%emt 0:00:32]} f5 {[%emt 0:01:49]} 24. Qc2 {[%emt 0:00:04]} Qxh6 {[%emt 0:00:47]} 25. b4 {[%emt 0:00:02]} Qg7 {[%emt 0:00:24]} 26. b5 {[%emt 0:00:09]} axb5 {[%emt 0:00:01]} 27. Rbxb5 {[%emt 0:00:01]} fxg4 {[%emt 0:00:11]} 28. Bxg4 {[%emt 0:00:05]} Qf7 {[%emt 0:00:07]} 29. Qb2 {[%emt 0:00:46]} Nd8 {[%emt 0:00:13]} 30. f4 {[%emt 0:00:07]} h5 {[%emt 0:00:10]} 31. Bf3 {[%emt 0:00:05]} Rd7 {[%emt 0:00:01]} 32. Be4 {[%emt 0:00:02]} Qf6 {[%emt 0:00:03]} 33. Rg5 {[%emt 0:00:03]} Rg7 {[%emt 0:00:01]} 34. Rb6 {[%emt 0:00:03]} Nf7 {[%emt 0:00:02]} 35. Rg3 {[%emt 0:00:18]} g5 {[%emt 0:00:01]} 36. f5 {[%emt 0:00:03]} g4 {[%emt 0:00:07]} 37. Rxe6 {[%emt 0:00:02]} Qd8 {[%emt 0:00:24]} 38. f6 {[%emt 0:00:12]} Rg5 {[%emt 0:00:01]} 39. Kh1 {[%emt 0:00:05]} h4 {[%emt 0:00:03]} 40. Rg1 {[%emt 0:00:01]} Nd6 {[%emt 0:00:02]} 41. Bb1 {[%emt 0:00:05]} Rxf6 {[%emt 0:00:02]} 42. Re5 {[%emt 0:00:03]} Rf3 {[%emt 0:00:04]} 43. Qc2 {[%emt 0:00:08]} Rh3+ {[%emt 0:00:05]} 44. Kg2 {[%emt 0:00:01]} Rg7 {[%emt 0:00:03]} 45. Ba2+ {[%emt 0:00:04]} Nf7 {[%emt 0:00:05]} 46. Qe4 {[%emt 0:00:08]} Rg3+ {[%emt 0:00:05]} 47. Kh2 {[%emt 0:00:01]} Rh3+ {[%emt 0:00:01]} 48. Kg2 {[%emt 0:00:01]} Rg3+ {[%emt 0:00:00]} 49. Kh1 {[%emt 0:00:00]} Rh3+ {[%emt 0:00:10]} 50. Kg2 {[%emt 0:00:02]} 1/2-1/2

[Event "Belt and Road Women-ch 2020"]
[Site "Xi'an"]
[Date "2020.12.05"]
[Round "2.4"]
[White "Tan, Zhongyi"]
[Black "Muzychuk, Mariya"]
[Result "1-0"]
[ECO "A45"]
[WhiteElo "2510"]
[BlackElo "2544"]
[Annotator "ChessBase"]
[PlyCount "57"]
[EventDate "2020.12.03"]
[EventCountry "CHN"]
[SourceTitle "playchess.com"]
[Source "ChessBase"]
[SourceQuality "1"]
[TimeControl "900+5"]

1. d4 {[%emt 0:00:02]} Nf6 {[%emt 0:00:04]} 2. Bf4 {[%emt 0:00:11]} g6 {[%emt 0:00:06]} 3. Nc3 {[%emt 0:00:08]} d5 {[%emt 0:00:17]} 4. e3 {[%emt 0:00:03]} a6 {[%emt 0:00:32]} 5. h4 {[%emt 0:00:42]} Bg7 {[%emt 0:01:00]} 6. h5 {[%emt 0:01:06]} Nxh5 {[%emt 0:00:50]} 7. Rxh5 {[%emt 0:00:04]} gxh5 {[%emt 0:00:01]} 8. Qxh5 {[%emt 0:00:01]} Be6 {[%emt 0:01:23]} 9. Nf3 {[%emt 0:00:08]} h6 {[%emt 0:01:37]} 10. O-O-O {[%emt 0:01:53]} Qd7 {[%emt 0:01:37]} 11. Be5 {[%emt 0:03:04]} Bg4 {[%emt 0:02:15]} 12. Qh2 {[%emt 0:00:09]} f6 {[%emt 0:00:10]} 13. Bxc7 {[%emt 0:00:10]} Nc6 {[%emt 0:00:02]} 14. Bd3 {[%emt 0:00:15]} Rc8 {[%emt 0:02:07]} 15. Bf4 {[%emt 0:00:15]} Na5 {[%emt 0:00:28]} 16. Qg3 {[%emt 0:00:26]} h5 {[%emt 0:00:35]} 17. Nh4 {[%emt 0:01:47]} Nc4 {[%emt 0:02:43]} 18. Bxc4 {[%emt 0:02:18]} Rxc4 {[%emt 0:00:01]} 19. f3 {[%emt 0:00:02]} e5 {[%emt 0:00:06]} 20. dxe5 {[%emt 0:00:04]} Be6 {[%emt 0:00:02]} 21. e4 {[%emt 0:01:30]} d4 {[%emt 0:00:11]} 22. Nf5 {[%emt 0:00:15]} Bxf5 {[%emt 0:00:07]} 23. exf5 {[%emt 0:00:03]} O-O {[%emt 0:00:04]} 24. e6 {[%emt 0:00:20]} Qc6 {[%emt 0:00:05]} 25. Ne4 {[%emt 0:00:40]} Rxc2+ {[%emt 0:00:03]} 26. Kb1 {[%emt 0:00:06]} Rc8 {[%emt 0:00:06]} 27. Rh1 {[%emt 0:00:34]} Qb5 {[%emt 0:00:22]} 28. Nxf6+ {[%emt 0:00:07]} Kf8 {[%emt 0:00:05]} 29. Bd6# {[%emt 0:00:02]} 1-0